[Event "Titled Tuesday Blitz July 25 Late 2023"]
[White "Skvortsov, Andrei"]
[Black "Miszler, Levente"]
[WhiteFideId "24108600"]
[BlackFideId "763276"]
[WhiteElo "2758"]
[BlackElo "2421"]
[Result "0-1"]
[Round "2"]
[TimeControl "180+2"]
[Date "2023.07.25"]
[WhiteClock "0:00:00"]
[BlackClock "0:00:18"]
[Board "67"]

1. e4 {[%clk 0:03:00]}  e6 {[%clk 0:03:00]} 2. d4 {[%clk 0:02:58]}  d5 {[%clk 0:03:01]} 3. exd5 {[%clk 0:02:59]}  exd5 {[%clk 0:03:01]} 4. Nf3 {[%clk 0:03:00]}  Nf6 {[%clk 0:03:01]} 5. Bd3 {[%clk 0:03:01]}  Bd6 {[%clk 0:03:01]} 6. Qe2+ {[%clk 0:03:01]}  Qe7 {[%clk 0:03:02]} 7. Qxe7+ {[%clk 0:03:02]}  Kxe7 {[%clk 0:03:03]} 8. Bg5 {[%clk 0:03:01]}  h6 {[%clk 0:03:02]} 9. Bh4 {[%clk 0:03:01]}  Be6 {[%clk 0:03:02]} 10. O-O {[%clk 0:03:01]}  Nd7 {[%clk 0:03:02]} 11. Re1 {[%clk 0:02:58]}  Rhe8 {[%clk 0:03:02]} 12. Ne5 {[%clk 0:02:56]}  Kf8 {[%clk 0:02:59]} 13. Nc3 {[%clk 0:02:54]}  c6 {[%clk 0:02:56]} 14. f4 {[%clk 0:02:52]}  Nb6 {[%clk 0:02:49]} 15. f5 {[%clk 0:02:38]}  Bd7 {[%clk 0:02:45]} 16. a4 {[%clk 0:02:25]}  a5 {[%clk 0:02:44]} 17. h3 {[%clk 0:02:21]}  c5 {[%clk 0:02:40]} 18. Nxd7+ {[%clk 0:02:20]}  Nfxd7 {[%clk 0:02:37]} 19. Nb5 {[%clk 0:02:20]}  Bf4 {[%clk 0:02:33]} 20. Bf2 {[%clk 0:02:09]}  c4 {[%clk 0:02:24]} 21. Bf1 {[%clk 0:02:09]}  Rxe1 {[%clk 0:02:22]} 22. Rxe1 {[%clk 0:02:09]}  Nxa4 {[%clk 0:02:19]} 23. b3 {[%clk 0:02:01]}  Nab6 {[%clk 0:02:11]} 24. g3 {[%clk 0:01:58]}  Bb8 {[%clk 0:02:06]} 25. Bg2 {[%clk 0:01:55]}  a4 {[%clk 0:02:00]} 26. bxc4 {[%clk 0:01:45]}  dxc4 {[%clk 0:01:55]} 27. Bxb7 {[%clk 0:01:31]}  Ra5 {[%clk 0:01:54]} 28. Bc6 {[%clk 0:01:31]}  a3 {[%clk 0:01:52]} 29. d5 {[%clk 0:01:32]}  a2 {[%clk 0:01:45]} 30. Bd4 {[%clk 0:00:20]}  Be5 {[%clk 0:01:32]} 31. Bxe5 {[%clk 0:00:09]}  Nxe5 {[%clk 0:01:33]} 32. Ra1 {[%clk 0:00:09]}  Nxd5 {[%clk 0:01:25]} 33. Nd4 {[%clk 0:00:05]}  Nb4 {[%clk 0:01:21]} 34. Be4 {[%clk 0:00:05]}  Ra3 {[%clk 0:01:05]} 35. Kf2 {[%clk 0:00:05]}  Ke7 {[%clk 0:00:48]} 36. Nb5 {[%clk 0:00:05]}  Ra5 {[%clk 0:00:45]} 37. Nc3 {[%clk 0:00:06]}  Nec6 {[%clk 0:00:36]} 38. Ke3 {[%clk 0:00:05]}  Ra3 {[%clk 0:00:35]} 39. Kd2 {[%clk 0:00:04]}  Nd4 {[%clk 0:00:35]} 40. g4 {[%clk 0:00:03]}  Kf6 {[%clk 0:00:24]} 41. Nd1 {[%clk 0:00:02]}  Rxh3 {[%clk 0:00:20]} 42. c3 {[%clk 0:00:00]}  Rh2+ {[%clk 0:00:18]} 0-1


[Site "https://www.chess.com"]

[Event "Titled Tuesday Blitz July 25 Late 2023"]
[White "Dwilewicz, Katarzyna"]
[Black "Remizov, Yaroslav"]
[WhiteFideId "1148486"]
[BlackFideId "34134015"]
[WhiteElo "2398"]
[BlackElo "2750"]
[Result "1-0"]
[Round "2"]
[TimeControl "180+2"]
[Date "2023.07.25"]
[WhiteClock "0:00:07"]
[BlackClock "0:00:16"]
[Board "69"]

1. e4 {[%clk 0:03:00]}  a6 {[%clk 0:02:57]} 2. d4 {[%clk 0:03:00]}  e6 {[%clk 0:02:56]} 3. Bd3 {[%clk 0:02:58]}  c5 {[%clk 0:02:56]} 4. c3 {[%clk 0:02:53]}  d5 {[%clk 0:02:53]} 5. exd5 {[%clk 0:02:49]}  exd5 {[%clk 0:02:53]} 6. Nf3 {[%clk 0:02:49]}  Nf6 {[%clk 0:02:48]} 7. O-O {[%clk 0:02:49]}  Be7 {[%clk 0:02:47]} 8. dxc5 {[%clk 0:02:43]}  Bxc5 {[%clk 0:02:45]} 9. Re1+ {[%clk 0:02:42]}  Be6 {[%clk 0:02:45]} 10. Nbd2 {[%clk 0:02:37]}  O-O {[%clk 0:02:40]} 11. Nb3 {[%clk 0:02:37]}  Bd6 {[%clk 0:02:32]} 12. h3 {[%clk 0:02:33]}  h6 {[%clk 0:02:11]} 13. Nbd4 {[%clk 0:02:31]}  Bd7 {[%clk 0:02:05]} 14. Nf5 {[%clk 0:02:23]}  Bxf5 {[%clk 0:02:01]} 15. Bxf5 {[%clk 0:02:10]}  Nc6 {[%clk 0:02:01]} 16. Nd4 {[%clk 0:01:59]}  Bc7 {[%clk 0:01:53]} 17. g3 {[%clk 0:01:55]}  Nxd4 {[%clk 0:01:40]} 18. Qxd4 {[%clk 0:01:54]}  Bb6 {[%clk 0:01:40]} 19. Qf4 {[%clk 0:01:34]}  d4 {[%clk 0:01:38]} 20. cxd4 {[%clk 0:01:30]}  Bxd4 {[%clk 0:01:33]} 21. Kg2 {[%clk 0:01:28]}  Qd5+ {[%clk 0:01:27]} 22. Qf3 {[%clk 0:01:26]}  Qc5 {[%clk 0:01:27]} 23. Be3 {[%clk 0:01:21]}  Rad8 {[%clk 0:01:27]} 24. Rac1 {[%clk 0:01:19]}  Qb6 {[%clk 0:01:27]} 25. Bxd4 {[%clk 0:01:14]}  Rxd4 {[%clk 0:01:27]} 26. Rc2 {[%clk 0:01:04]}  Rfd8 {[%clk 0:01:25]} 27. Rce2 {[%clk 0:00:58]}  g6 {[%clk 0:01:22]} 28. Bc2 {[%clk 0:00:55]}  Rd2 {[%clk 0:01:15]} 29. Bb3 {[%clk 0:00:52]}  Kg7 {[%clk 0:01:14]} 30. Re7 {[%clk 0:00:48]}  Rf8 {[%clk 0:00:40]} 31. R1e6 {[%clk 0:00:48]}  Qd4 {[%clk 0:00:40]} 32. Rxb7 {[%clk 0:00:38]}  Qxb2 {[%clk 0:00:34]} 33. Ree7 {[%clk 0:00:31]}  Kh8 {[%clk 0:00:18]} 34. Rxf7 {[%clk 0:00:25]}  Rdd8 {[%clk 0:00:18]} 35. Rbe7 {[%clk 0:00:17]}  Qd4 {[%clk 0:00:17]} 36. Qb7 {[%clk 0:00:15]}  Rxf7 {[%clk 0:00:17]} 37. Rxf7 {[%clk 0:00:15]}  Qd6 {[%clk 0:00:16]} 38. Qf3 {[%clk 0:00:12]}  Nd7 {[%clk 0:00:13]} 39. Qc3+ {[%clk 0:00:10]}  Qe5 {[%clk 0:00:13]} 40. Qxe5+ {[%clk 0:00:09]}  Nxe5 {[%clk 0:00:14]} 41. Rf6 {[%clk 0:00:10]}  a5 {[%clk 0:00:14]} 42. Ra6 {[%clk 0:00:10]}  Kg7 {[%clk 0:00:13]} 43. Rxa5 {[%clk 0:00:11]}  Nd3 {[%clk 0:00:13]} 44. Ra6 {[%clk 0:00:11]}  Nc5 {[%clk 0:00:13]} 45. Ra7+ {[%clk 0:00:11]}  Kh8 {[%clk 0:00:14]} 46. Bc4 {[%clk 0:00:11]}  Rd2 {[%clk 0:00:13]} 47. Rc7 {[%clk 0:00:08]}  Ne4 {[%clk 0:00:13]} 48. Rf7 {[%clk 0:00:08]}  Rb2 {[%clk 0:00:13]} 49. Bb3 {[%clk 0:00:08]}  Nd2 {[%clk 0:00:12]} 50. h4 {[%clk 0:00:06]}  Nxb3 {[%clk 0:00:12]} 51. axb3 {[%clk 0:00:06]}  Rxb3 {[%clk 0:00:13]} 52. Rc7 {[%clk 0:00:06]}  Kg8 {[%clk 0:00:13]} 53. g4 {[%clk 0:00:06]}  Rb4 {[%clk 0:00:13]} 54. f3 {[%clk 0:00:06]}  Rb1 {[%clk 0:00:13]} 55. Kg3 {[%clk 0:00:07]}  Rb5 {[%clk 0:00:13]} 56. Rc6 {[%clk 0:00:06]}  Kg7 {[%clk 0:00:13]} 57. Rc7+ {[%clk 0:00:06]}  Kg8 {[%clk 0:00:14]} 58. Rd7 {[%clk 0:00:06]}  Rb1 {[%clk 0:00:14]} 59. Kf4 {[%clk 0:00:06]}  Rb4+ {[%clk 0:00:14]} 60. Kg3 {[%clk 0:00:06]}  Rb6 {[%clk 0:00:14]} 61. Kf4 {[%clk 0:00:06]}  Rf6+ {[%clk 0:00:15]} 62. Ke4 {[%clk 0:00:06]}  Re6+ {[%clk 0:00:15]} 63. Kd5 {[%clk 0:00:07]}  Re3 {[%clk 0:00:15]} 64. f4 {[%clk 0:00:07]}  Re1 {[%clk 0:00:15]} 65. Rd6 {[%clk 0:00:06]}  Kf7 {[%clk 0:00:15]} 66. h5 {[%clk 0:00:05]}  gxh5 {[%clk 0:00:15]} 67. gxh5 {[%clk 0:00:06]}  Kg7 {[%clk 0:00:15]} 68. Rg6+ {[%clk 0:00:07]}  Kh7 {[%clk 0:00:16]} 69. f5 {[%clk 0:00:07]}  Rh1 {[%clk 0:00:16]} 70. Ke6 {[%clk 0:00:07]}  Rxh5 {[%clk 0:00:16]} 71. Rf6 {[%clk 0:00:06]}  Rh1 {[%clk 0:00:16]} 72. Rf7+ {[%clk 0:00:07]}  Kg8 {[%clk 0:00:17]} 73. Rb7 {[%clk 0:00:07]}  Ra1 {[%clk 0:00:17]} 74. f6 {[%clk 0:00:05]}  Ra6+ {[%clk 0:00:16]} 75. Kf5 {[%clk 0:00:06]}  Ra8 {[%clk 0:00:16]} 76. Kg6 {[%clk 0:00:06]}  Rf8 {[%clk 0:00:15]} 77. Rg7+ {[%clk 0:00:06]}  Kh8 {[%clk 0:00:15]} 78. Rh7+ {[%clk 0:00:06]}  Kg8 {[%clk 0:00:16]} 79. f7+ {[%clk 0:00:06]}  Rxf7 {[%clk 0:00:17]} 80. Rxf7 {[%clk 0:00:07]}  Kh8 {[%clk 0:00:16]} 81. Rf4 {[%clk 0:00:07]} 1-0


[Site "https://www.chess.com"]

[Event "Titled Tuesday Blitz July 25 Late 2023"]
[White "Matinian, Nikita"]
[Black "Lalanne, Pablo"]
[WhiteFideId "24129100"]
[BlackFideId "112151"]
[WhiteElo "2749"]
[BlackElo "2391"]
[Result "1-0"]
[Round "2"]
[TimeControl "180+2"]
[Date "2023.07.25"]
[WhiteClock "0:02:24"]
[BlackClock "0:00:11"]
[Board "70"]

1. e4 {[%clk 0:03:00]}  c5 {[%clk 0:02:59]} 2. Nf3 {[%clk 0:03:01]}  d6 {[%clk 0:02:59]} 3. d4 {[%clk 0:03:01]}  cxd4 {[%clk 0:03:00]} 4. Nxd4 {[%clk 0:03:02]}  Nf6 {[%clk 0:03:00]} 5. Nc3 {[%clk 0:03:03]}  Nc6 {[%clk 0:03:01]} 6. Bg5 {[%clk 0:03:02]}  e6 {[%clk 0:03:00]} 7. Qd3 {[%clk 0:03:02]}  Be7 {[%clk 0:02:55]} 8. O-O-O {[%clk 0:02:59]}  a6 {[%clk 0:02:54]} 9. f4 {[%clk 0:02:59]}  Qc7 {[%clk 0:02:46]} 10. Qg3 {[%clk 0:02:50]}  O-O {[%clk 0:02:05]} 11. Nxc6 {[%clk 0:02:44]}  bxc6 {[%clk 0:02:00]} 12. Bd3 {[%clk 0:02:44]}  Rb8 {[%clk 0:01:45]} 13. e5 {[%clk 0:02:43]}  dxe5 {[%clk 0:01:37]} 14. fxe5 {[%clk 0:02:44]}  Nh5 {[%clk 0:01:32]} 15. Qh4 {[%clk 0:02:43]}  Bxg5+ {[%clk 0:01:28]} 16. Qxg5 {[%clk 0:02:44]}  g6 {[%clk 0:01:24]} 17. g4 {[%clk 0:02:41]}  Ng7 {[%clk 0:01:18]} 18. Ne4 {[%clk 0:02:40]}  f5 {[%clk 0:00:56]} 19. exf6 {[%clk 0:02:33]}  Ne8 {[%clk 0:00:45]} 20. Rhf1 {[%clk 0:02:32]}  Rf7 {[%clk 0:00:24]} 21. h4 {[%clk 0:02:28]}  Bb7 {[%clk 0:00:12]} 22. h5 {[%clk 0:02:27]}  c5 {[%clk 0:00:13]} 23. hxg6 {[%clk 0:02:25]}  hxg6 {[%clk 0:00:11]} 24. Qxg6+ {[%clk 0:02:24]} 1-0


[Site "https://www.chess.com"]

[Event "Titled Tuesday Blitz July 25 Late 2023"]
[White "Andrews, Todd"]
[Black "Panesar Vedant"]
[WhiteFideId "2012456"]
[BlackFideId "35033018"]
[WhiteElo "2359"]
[BlackElo "2716"]
[Result "1-0"]
[Round "2"]
[TimeControl "180+2"]
[Date "2023.07.25"]
[WhiteClock "0:00:23"]
[BlackClock "0:00:10"]
[Board "74"]

1. e4 {[%clk 0:03:00]}  e5 {[%clk 0:02:59]} 2. Nf3 {[%clk 0:02:58]}  Nf6 {[%clk 0:03:00]} 3. Nc3 {[%clk 0:02:57]}  Nc6 {[%clk 0:03:00]} 4. Bb5 {[%clk 0:02:58]}  Nd4 {[%clk 0:03:00]} 5. Bc4 {[%clk 0:02:57]}  Bc5 {[%clk 0:03:00]} 6. d3 {[%clk 0:02:57]}  d6 {[%clk 0:02:59]} 7. h3 {[%clk 0:02:57]}  Ne6 {[%clk 0:02:47]} 8. Ne2 {[%clk 0:02:53]}  O-O {[%clk 0:02:44]} 9. c3 {[%clk 0:02:53]}  c6 {[%clk 0:02:43]} 10. Bb3 {[%clk 0:02:47]}  Re8 {[%clk 0:02:33]} 11. O-O {[%clk 0:02:45]}  a5 {[%clk 0:02:31]} 12. Ng3 {[%clk 0:02:41]}  Bb6 {[%clk 0:02:11]} 13. d4 {[%clk 0:02:32]}  exd4 {[%clk 0:02:09]} 14. cxd4 {[%clk 0:02:30]}  d5 {[%clk 0:02:09]} 15. e5 {[%clk 0:02:26]}  Ne4 {[%clk 0:02:09]} 16. Nf5 {[%clk 0:02:12]}  Nf8 {[%clk 0:01:38]} 17. Ne3 {[%clk 0:02:07]}  Ng6 {[%clk 0:01:36]} 18. Ng4 {[%clk 0:01:47]}  f5 {[%clk 0:01:26]} 19. exf6 {[%clk 0:01:40]}  Nxf6 {[%clk 0:01:18]} 20. Nge5 {[%clk 0:01:33]}  Nxe5 {[%clk 0:01:15]} 21. Nxe5 {[%clk 0:01:26]}  Rf8 {[%clk 0:01:08]} 22. Bg5 {[%clk 0:01:24]}  Bf5 {[%clk 0:01:06]} 23. Rc1 {[%clk 0:01:06]}  h6 {[%clk 0:01:04]} 24. Bh4 {[%clk 0:01:00]}  Kh7 {[%clk 0:00:52]} 25. Rc3 {[%clk 0:00:57]}  Kg8 {[%clk 0:00:51]} 26. Rf3 {[%clk 0:00:49]}  Be4 {[%clk 0:00:46]} 27. Re3 {[%clk 0:00:49]}  Kh7 {[%clk 0:00:41]} 28. Bc2 {[%clk 0:00:42]}  Bxc2 {[%clk 0:00:30]} 29. Qxc2+ {[%clk 0:00:43]}  Kg8 {[%clk 0:00:30]} 30. Qg6 {[%clk 0:00:41]}  Qe8 {[%clk 0:00:28]} 31. Qd3 {[%clk 0:00:37]}  Qh5 {[%clk 0:00:22]} 32. Bxf6 {[%clk 0:00:36]}  Rxf6 {[%clk 0:00:21]} 33. f4 {[%clk 0:00:32]}  Bc7 {[%clk 0:00:20]} 34. Rg3 {[%clk 0:00:30]}  Bxe5 {[%clk 0:00:20]} 35. dxe5 {[%clk 0:00:29]}  Rf7 {[%clk 0:00:20]} 36. f5 {[%clk 0:00:29]}  Qh4 {[%clk 0:00:19]} 37. f6 {[%clk 0:00:26]}  g5 {[%clk 0:00:18]} 38. Qg6+ {[%clk 0:00:25]}  Kf8 {[%clk 0:00:10]} 39. e6 {[%clk 0:00:23]} 1-0


[Site "https://www.chess.com"]

[Event "Titled Tuesday Blitz July 25 Late 2023"]
[White "Korchmar, Vasiliy"]
[Black "ChessSG1"]
[WhiteFideId "24131750"]
[WhiteElo "2714"]
[BlackElo "2349"]
[Result "0-1"]
[Round "2"]
[TimeControl "180+2"]
[Date "2023.07.25"]
[WhiteClock "0:00:00"]
[BlackClock "0:00:21"]
[Board "75"]

1. e4 {[%clk 0:02:59]}  c5 {[%clk 0:03:00]} 2. d4 {[%clk 0:02:58]}  cxd4 {[%clk 0:03:00]} 3. Qxd4 {[%clk 0:02:59]}  Nc6 {[%clk 0:02:58]} 4. Qd3 {[%clk 0:02:59]}  Nf6 {[%clk 0:02:56]} 5. Nc3 {[%clk 0:02:59]}  g6 {[%clk 0:02:47]} 6. Nf3 {[%clk 0:02:59]}  Bg7 {[%clk 0:02:47]} 7. Be2 {[%clk 0:03:00]}  d6 {[%clk 0:02:46]} 8. O-O {[%clk 0:03:00]}  O-O {[%clk 0:02:47]} 9. Nd5 {[%clk 0:02:59]}  Nd7 {[%clk 0:02:45]} 10. c3 {[%clk 0:02:58]}  Nc5 {[%clk 0:02:36]} 11. Qc2 {[%clk 0:02:58]}  a5 {[%clk 0:02:34]} 12. Bg5 {[%clk 0:02:57]}  h6 {[%clk 0:02:33]} 13. Bh4 {[%clk 0:02:56]}  f5 {[%clk 0:02:17]} 14. exf5 {[%clk 0:02:47]}  Bxf5 {[%clk 0:02:18]} 15. Qd1 {[%clk 0:02:47]}  Kh7 {[%clk 0:02:14]} 16. Nd4 {[%clk 0:02:42]}  Nxd4 {[%clk 0:02:03]} 17. cxd4 {[%clk 0:02:43]}  g5 {[%clk 0:02:03]} 18. Bxg5 {[%clk 0:02:25]}  hxg5 {[%clk 0:02:01]} 19. dxc5 {[%clk 0:02:23]}  dxc5 {[%clk 0:01:47]} 20. Bf3 {[%clk 0:01:02]}  g4 {[%clk 0:01:24]} 21. Be2 {[%clk 0:00:53]}  Bxb2 {[%clk 0:01:19]} 22. Rb1 {[%clk 0:00:52]}  Bd4 {[%clk 0:01:18]} 23. Nf4 {[%clk 0:00:35]}  Be5 {[%clk 0:00:49]} 24. Qc1 {[%clk 0:00:24]}  Bxf4 {[%clk 0:00:42]} 25. Qxf4 {[%clk 0:00:17]}  Bxb1 {[%clk 0:00:42]} 26. Qxg4 {[%clk 0:00:08]}  Bg6 {[%clk 0:00:42]} 27. h4 {[%clk 0:00:02]}  Qd5 {[%clk 0:00:39]} 28. h5 {[%clk 0:00:02]}  Qxh5 {[%clk 0:00:25]} 29. Qe6 {[%clk 0:00:00]}  Qg5 {[%clk 0:00:21]} 0-1


[Site "https://www.chess.com"]

[Event "Titled Tuesday Blitz July 25 Late 2023"]
[White "Fernandez Siles, Luis"]
[Black "Yanchenko, Roman"]
[WhiteFideId "2209420"]
[BlackFideId "4137329"]
[WhiteElo "2327"]
[BlackElo "2713"]
[Result "0-1"]
[Round "2"]
[TimeControl "180+2"]
[Date "2023.07.25"]
[WhiteClock "0:01:03"]
[BlackClock "0:01:54"]
[Board "77"]

1. e4 {[%clk 0:03:00]}  e6 {[%clk 0:03:00]} 2. d4 {[%clk 0:03:00]}  d5 {[%clk 0:03:00]} 3. Nd2 {[%clk 0:03:00]}  c5 {[%clk 0:03:01]} 4. c3 {[%clk 0:03:00]}  Nc6 {[%clk 0:03:01]} 5. Ngf3 {[%clk 0:03:00]}  cxd4 {[%clk 0:03:00]} 6. cxd4 {[%clk 0:03:01]}  Nf6 {[%clk 0:03:00]} 7. Bd3 {[%clk 0:03:00]}  dxe4 {[%clk 0:02:54]} 8. Nxe4 {[%clk 0:03:01]}  Bb4+ {[%clk 0:02:54]} 9. Nc3 {[%clk 0:03:01]}  h6 {[%clk 0:02:50]} 10. O-O {[%clk 0:03:00]}  O-O {[%clk 0:02:50]} 11. Bc2 {[%clk 0:02:54]}  b6 {[%clk 0:02:45]} 12. Qd3 {[%clk 0:02:48]}  Bxc3 {[%clk 0:02:33]} 13. bxc3 {[%clk 0:02:48]}  a5 {[%clk 0:02:30]} 14. Re1 {[%clk 0:02:41]}  Ba6 {[%clk 0:02:29]} 15. Qd1 {[%clk 0:02:30]}  Qd5 {[%clk 0:02:28]} 16. Bf4 {[%clk 0:02:08]}  Rac8 {[%clk 0:02:23]} 17. Ne5 {[%clk 0:01:58]}  Nxe5 {[%clk 0:02:02]} 18. Rxe5 {[%clk 0:01:55]}  Qc6 {[%clk 0:01:56]} 19. Re3 {[%clk 0:01:37]}  Nd5 {[%clk 0:01:55]} 20. Be4 {[%clk 0:01:03]}  Nxe3 {[%clk 0:01:54]} 0-1


[Site "https://www.chess.com"]

[Event "Titled Tuesday Blitz July 25 Late 2023"]
[White "Alex_Sahakyan2006"]
[Black "Sala, Giulia"]
[BlackFideId "2840451"]
[WhiteElo "2712"]
[BlackElo "2315"]
[Result "1-0"]
[Round "2"]
[TimeControl "180+2"]
[Date "2023.07.25"]
[WhiteClock "0:00:47"]
[BlackClock "0:00:13"]
[Board "78"]

1. b3 {[%clk 0:03:00]}  e5 {[%clk 0:02:58]} 2. Bb2 {[%clk 0:03:01]}  Nc6 {[%clk 0:02:58]} 3. c4 {[%clk 0:03:02]}  g6 {[%clk 0:02:57]} 4. h4 {[%clk 0:02:58]}  h5 {[%clk 0:02:56]} 5. Nf3 {[%clk 0:02:58]}  Bg7 {[%clk 0:02:56]} 6. e3 {[%clk 0:02:59]}  d6 {[%clk 0:02:55]} 7. d4 {[%clk 0:02:59]}  Bg4 {[%clk 0:02:54]} 8. Be2 {[%clk 0:02:59]}  Qe7 {[%clk 0:02:49]} 9. Nc3 {[%clk 0:02:58]}  exd4 {[%clk 0:02:41]} 10. Nd5 {[%clk 0:02:58]}  Qd8 {[%clk 0:02:39]} 11. Nxd4 {[%clk 0:02:59]}  Bxe2 {[%clk 0:02:34]} 12. Qxe2 {[%clk 0:02:56]}  Nxd4 {[%clk 0:02:31]} 13. exd4+ {[%clk 0:02:43]}  Ne7 {[%clk 0:02:27]} 14. Bc1 {[%clk 0:02:28]}  c6 {[%clk 0:02:24]} 15. Nxe7 {[%clk 0:02:25]}  Qxe7 {[%clk 0:02:24]} 16. Qxe7+ {[%clk 0:02:26]}  Kxe7 {[%clk 0:02:24]} 17. Be3 {[%clk 0:02:27]}  Kd7 {[%clk 0:02:18]} 18. O-O-O {[%clk 0:02:27]}  d5 {[%clk 0:02:13]} 19. Kc2 {[%clk 0:02:27]}  Rhe8 {[%clk 0:02:12]} 20. Kd3 {[%clk 0:02:25]}  Re4 {[%clk 0:02:11]} 21. f3 {[%clk 0:02:26]}  Re6 {[%clk 0:02:08]} 22. Bf2 {[%clk 0:02:20]}  Rae8 {[%clk 0:02:07]} 23. Rhe1 {[%clk 0:02:20]}  Bf6 {[%clk 0:01:58]} 24. Rc1 {[%clk 0:02:16]}  Bd8 {[%clk 0:01:46]} 25. Rxe6 {[%clk 0:02:13]}  Rxe6 {[%clk 0:01:46]} 26. cxd5 {[%clk 0:02:14]}  cxd5 {[%clk 0:01:45]} 27. Rc5 {[%clk 0:02:15]}  Ra6 {[%clk 0:01:22]} 28. Rxd5+ {[%clk 0:02:10]}  Ke7 {[%clk 0:01:22]} 29. a4 {[%clk 0:02:09]}  Rb6 {[%clk 0:01:21]} 30. Rb5 {[%clk 0:02:05]}  Rxb5 {[%clk 0:01:21]} 31. axb5 {[%clk 0:02:06]}  Bb6 {[%clk 0:01:21]} 32. Kc4 {[%clk 0:01:56]}  Kd6 {[%clk 0:01:20]} 33. Bg3+ {[%clk 0:01:54]}  Kd7 {[%clk 0:01:20]} 34. Kd5 {[%clk 0:01:51]}  Bd8 {[%clk 0:01:19]} 35. Be1 {[%clk 0:01:46]}  Bf6 {[%clk 0:01:17]} 36. g3 {[%clk 0:01:45]}  Be7 {[%clk 0:01:17]} 37. Bd2 {[%clk 0:01:33]}  Bd8 {[%clk 0:01:16]} 38. Bf4 {[%clk 0:01:31]}  Be7 {[%clk 0:01:16]} 39. Bb8 {[%clk 0:01:31]}  a6 {[%clk 0:01:13]} 40. bxa6 {[%clk 0:01:32]}  bxa6 {[%clk 0:01:14]} 41. Kc4 {[%clk 0:01:28]}  Kc6 {[%clk 0:01:01]} 42. d5+ {[%clk 0:01:28]}  Kd7 {[%clk 0:01:00]} 43. Bf4 {[%clk 0:01:28]}  Bd8 {[%clk 0:00:58]} 44. Kc5 {[%clk 0:01:29]}  Be7+ {[%clk 0:00:58]} 45. Kb6 {[%clk 0:01:29]}  f6 {[%clk 0:00:54]} 46. Kxa6 {[%clk 0:01:23]}  g5 {[%clk 0:00:54]} 47. Bb8 {[%clk 0:01:04]}  f5 {[%clk 0:00:41]} 48. hxg5 {[%clk 0:01:00]}  Bxg5 {[%clk 0:00:42]} 49. f4 {[%clk 0:00:56]}  Be7 {[%clk 0:00:40]} 50. Be5 {[%clk 0:00:51]}  Bc5 {[%clk 0:00:40]} 51. Bf6 {[%clk 0:00:47]}  Bf2 {[%clk 0:00:40]} 52. Bh4 {[%clk 0:00:47]}  Kd6 {[%clk 0:00:40]} 53. b4 {[%clk 0:00:44]}  Kxd5 {[%clk 0:00:39]} 54. b5 {[%clk 0:00:45]}  Ke4 {[%clk 0:00:30]} 55. b6 {[%clk 0:00:45]}  Kf3 {[%clk 0:00:31]} 56. b7 {[%clk 0:00:45]}  Bxg3 {[%clk 0:00:31]} 57. Bxg3 {[%clk 0:00:46]}  Kxg3 {[%clk 0:00:31]} 58. b8=Q {[%clk 0:00:46]}  h4 {[%clk 0:00:31]} 59. Qe5 {[%clk 0:00:45]}  Kg4 {[%clk 0:00:20]} 60. Qe3 {[%clk 0:00:44]}  h3 {[%clk 0:00:20]} 61. Qf2 {[%clk 0:00:45]}  Kh5 {[%clk 0:00:17]} 62. Qh2 {[%clk 0:00:45]}  Kg4 {[%clk 0:00:17]} 63. Kb5 {[%clk 0:00:46]}  Kf3 {[%clk 0:00:17]} 64. Kc4 {[%clk 0:00:47]}  Kg4 {[%clk 0:00:18]} 65. Kd3 {[%clk 0:00:48]}  Kf3 {[%clk 0:00:13]} 66. Kd4 {[%clk 0:00:47]} 1-0


[Site "https://www.chess.com"]

[Event "Titled Tuesday Blitz July 25 Late 2023"]
[White "Barwinska, Ewa"]
[Black "Adewumi, Tanitoluwa"]
[WhiteFideId "21833761"]
[BlackFideId "30966396"]
[WhiteElo "2300"]
[BlackElo "2702"]
[Result "1-0"]
[Round "2"]
[TimeControl "180+2"]
[Date "2023.07.25"]
[WhiteClock "0:00:06"]
[BlackClock "0:00:08"]
[Board "80"]

1. e4 {[%clk 0:03:00]}  c5 {[%clk 0:02:55]} 2. Nf3 {[%clk 0:02:56]}  e6 {[%clk 0:02:54]} 3. c3 {[%clk 0:02:52]}  Nf6 {[%clk 0:02:51]} 4. e5 {[%clk 0:02:45]}  Nd5 {[%clk 0:02:51]} 5. d4 {[%clk 0:02:45]}  cxd4 {[%clk 0:02:50]} 6. cxd4 {[%clk 0:02:46]}  d6 {[%clk 0:02:51]} 7. Bc4 {[%clk 0:02:35]}  Nc6 {[%clk 0:02:50]} 8. O-O {[%clk 0:02:27]}  Be7 {[%clk 0:02:23]} 9. h3 {[%clk 0:02:11]}  O-O {[%clk 0:02:22]} 10. Re1 {[%clk 0:02:00]}  Qc7 {[%clk 0:02:15]} 11. Bxd5 {[%clk 0:01:57]}  exd5 {[%clk 0:02:15]} 12. Bf4 {[%clk 0:01:56]}  dxe5 {[%clk 0:02:14]} 13. dxe5 {[%clk 0:01:43]}  Be6 {[%clk 0:02:13]} 14. Nc3 {[%clk 0:01:41]}  Rfd8 {[%clk 0:02:02]} 15. Rc1 {[%clk 0:01:27]}  Qb6 {[%clk 0:01:59]} 16. Na4 {[%clk 0:01:24]}  Qa6 {[%clk 0:01:46]} 17. a3 {[%clk 0:01:09]}  d4 {[%clk 0:01:36]} 18. Nc5 {[%clk 0:01:03]}  Bxc5 {[%clk 0:01:23]} 19. Rxc5 {[%clk 0:01:04]}  Qb6 {[%clk 0:01:23]} 20. b4 {[%clk 0:01:00]}  a5 {[%clk 0:01:14]} 21. Ng5 {[%clk 0:00:31]}  axb4 {[%clk 0:01:06]} 22. axb4 {[%clk 0:00:31]}  Nxb4 {[%clk 0:01:04]} 23. Rc1 {[%clk 0:00:28]}  d3 {[%clk 0:00:56]} 24. Qh5 {[%clk 0:00:26]}  h6 {[%clk 0:00:49]} 25. Ne4 {[%clk 0:00:26]}  Nd5 {[%clk 0:00:25]} 26. Bxh6 {[%clk 0:00:17]}  gxh6 {[%clk 0:00:16]} 27. Qxh6 {[%clk 0:00:18]}  Qb4 {[%clk 0:00:05]} 28. Nf6+ {[%clk 0:00:11]}  Nxf6 {[%clk 0:00:05]} 29. exf6 {[%clk 0:00:11]}  Qf8 {[%clk 0:00:05]} 30. Qg5+ {[%clk 0:00:12]}  Kh7 {[%clk 0:00:05]} 31. Re4 {[%clk 0:00:08]}  Qh6 {[%clk 0:00:05]} 32. Rh4 {[%clk 0:00:08]}  Qxh4 {[%clk 0:00:06]} 33. Qxh4+ {[%clk 0:00:09]}  Kg6 {[%clk 0:00:07]} 34. g4 {[%clk 0:00:06]}  d2 {[%clk 0:00:06]} 35. Rd1 {[%clk 0:00:05]}  Bb3 {[%clk 0:00:05]} 36. Qh5+ {[%clk 0:00:05]}  Kxf6 {[%clk 0:00:05]} 37. Qf5+ {[%clk 0:00:05]}  Ke7 {[%clk 0:00:04]} 38. Qe4+ {[%clk 0:00:05]}  Kf8 {[%clk 0:00:04]} 39. Rxd2 {[%clk 0:00:02]}  Ra1+ {[%clk 0:00:03]} 40. Kh2 {[%clk 0:00:02]}  Rxd2 {[%clk 0:00:04]} 41. Qb4+ {[%clk 0:00:02]}  Rd6 {[%clk 0:00:04]} 42. Qxd6+ {[%clk 0:00:03]}  Kg7 {[%clk 0:00:05]} 43. Qe5+ {[%clk 0:00:03]}  f6 {[%clk 0:00:05]} 44. Qxa1 {[%clk 0:00:03]}  Bd5 {[%clk 0:00:06]} 45. Qb2 {[%clk 0:00:03]}  Bc6 {[%clk 0:00:06]} 46. f4 {[%clk 0:00:04]}  Kf7 {[%clk 0:00:07]} 47. g5 {[%clk 0:00:04]}  fxg5 {[%clk 0:00:08]} 48. fxg5 {[%clk 0:00:05]}  Kg6 {[%clk 0:00:09]} 49. Qf6+ {[%clk 0:00:05]}  Kh5 {[%clk 0:00:08]} 50. Qh6# {[%clk 0:00:06]} 1-0


[Site "https://www.chess.com"]